fUSD/lending_fUSD_20240831
["ID","MTS","AMOUNT","RATE_DAILY","PERIOD"]
[336744987,1725096191745,-1509.98,0.00042739,120]
[336744988,1725096191788,-558.78,0.00042739,120]
[336744989,1725096191830,-500.0,0.00042739,120]
[336744990,1725096191877,-1624.06,0.00042739,120]
[336744991,1725096191925,-332.2198631,0.00042739,120]
[336744992,1725096191972,-500.0,0.00042739,120]
[336744993,1725096192020,-640.25,0.00042739,120]
[336744994,1725096192066,-500.0,0.00042739,120]
[336744995,1725096192114,-934.21,0.00042739,120]
[336744996,1725096192166,-969.88,0.00042739,120]
[336744997,1725096192212,-791.62,0.00042739,120]
[336744998,1725096192259,-915.31,0.00042739,120]
[336744999,1725096192305,-1688.13,0.00042739,120]
[336745000,1725096192351,-616.66,0.00042739,120]
[336745001,1725096192395,-777.63,0.00042739,120]
[336745002,1725096192438,-1310.98,0.00042739,120]
[336745003,1725096192483,-875.1,0.00042739,120]
[336745004,1725096192528,-1032.09,0.00042739,120]
[336745005,1725096192574,-2876.73,0.00042739,120]
[336745006,1725096192621,-761.85,0.00042739,120]
[336745007,1725096192669,-1344.34,0.00042739,120]
[336745008,1725096192716,-339.10567869,0.00042739,120]
[336745009,1725096192766,-4839.39,0.00042739,120]
[336745010,1725096192814,-500.0,0.00042739,120]
[336745011,1725096192863,-428.06167858,0.00042739,120]
[336745012,1725096192910,-1399.41,0.00042739,120]
[336745013,1725096192959,-500.0,0.00042739,120]
[336745014,1725096193007,-588.48,0.00042739,120]
[336745015,1725096193054,-500.0,0.00042739,120]
[336745016,1725096193101,-500.0,0.00042739,120]
[336745017,1725096193148,-500.0,0.00042739,120]
[336745018,1725096193193,-559.89,0.00042739,120]
[336745019,1725096193239,-500.0,0.00042739,120]
[336745020,1725096193286,-500.0,0.00042739,120]
[336745021,1725096193332,-500.0,0.00042739,120]
[336745022,1725096193379,-511.74,0.00042739,120]
[336745023,1725096193424,-500.0,0.00042739,120]
[336745024,1725096193472,-500.0,0.00042739,120]
[336745025,1725096193519,-1112.54,0.00042739,120]
[336745026,1725096193567,-500.0,0.00042739,120]
[336745027,1725096193616,-500.0,0.00042739,120]
[336745028,1725096193666,-508.19,0.00042739,120]
[336745029,1725096193714,-2558.51,0.00042739,120]
[336745030,1725096193761,-694.5,0.00042739,120]
[336745031,1725096193964,-500.0,0.00042739,120]
[336745032,1725096194017,-923.73,0.00042739,120]
[336745033,1725096194068,-444.24097995,0.00042739,120]
[336745034,1725096194121,-1446.32,0.00042739,120]
[336745035,1725096194173,-500.0,0.00042739,120]
[336745036,1725096194226,-1350.52,0.00042739,120]
[336745037,1725096194277,-500.0,0.00042739,120]
[336745038,1725096194328,-1170.8,0.00042739,120]
[336745039,1725096194377,-618.91,0.00042739,120]
[336745040,1725096194426,-500.0,0.00042739,120]
[336745041,1725096194476,-500.0,0.00042739,120]
[336745042,1725096194525,-3324.83,0.00042739,120]
[336745043,1725096194574,-1273.21,0.00042739,120]
[336745044,1725096194626,-500.0,0.00042739,120]
[336745045,1725096194676,-1114.0,0.00042739,120]
[336745046,1725096194730,-1256.51,0.00042739,120]
[336745047,1725096194779,-500.0,0.00042739,120]
[336745048,1725096194829,-1913.46,0.00042739,120]
[336745049,1725096194878,-1221.34,0.00042739,120]
[336745050,1725096194928,-500.0,0.00042739,120]
[336745051,1725096194978,-472.45324053,0.00042739,120]
[336745052,1725096195031,-500.0,0.00042739,120]
[336745053,1725096195080,-1287.93,0.00042739,120]
[336745054,1725096195130,-500.0,0.00042739,120]
[336745055,1725096195178,-500.0,0.00042739,120]
[336745056,1725096195227,-925.06,0.00042739,120]
[336745057,1725096195276,-500.0,0.00042739,120]
[336745058,1725096195324,-182.77175213,0.00042739,120]
[336745059,1725096195371,-500.0,0.00042739,120]
[336745060,1725096195418,-500.0,0.00042739,120]
[336745061,1725096195465,-548.88,0.00042739,120]
[336745062,1725096195513,-775.46,0.00042739,120]
[336745063,1725096195560,-1018.59,0.00042739,120]
[336745064,1725096195610,-540.19,0.00042739,120]
[336745065,1725096195661,-1162.77,0.00042739,120]
[336745066,1725096195708,-500.0,0.00042739,120]
[336745067,1725096195755,-500.0,0.00042739,120]
[336745068,1725096195802,-2066.04,0.00042739,120]
[336745069,1725096195848,-500.0,0.00042739,120]
[336745070,1725096195896,-500.0,0.00042739,120]
[336745071,1725096195943,-500.0,0.00042739,120]
[336745072,1725096195990,-500.0,0.00042739,120]
[336745073,1725096196038,-721.89,0.00042739,120]
[336745074,1725096196085,-666.61,0.00042739,120]
[336745075,1725096196132,-1547.45,0.00042739,120]
[336745076,1725096196180,-598.25,0.00042739,120]
[336745077,1725096196226,-558.12,0.00042739,120]
[336745078,1725096196274,-643.08,0.00042739,120]
[336745079,1725096196320,-585.19,0.00042739,120]
[336745080,1725096196366,-2179.7,0.00042739,120]
[336745081,1725096196413,-777.19,0.00042739,120]
[336745082,1725096196461,-2274.45,0.00042739,120]
[336745083,1725096196509,-500.0,0.00042739,120]
[336745084,1725096196558,-635.42,0.00042739,120]
[336745085,1725096196606,-500.0,0.00042739,120]
[336745086,1725096196656,-868.12,0.00042739,120]
[336745087,1725096196706,-500.0,0.00042739,120]
[336745088,1725096196756,-1151.6,0.00042739,120]
[336745089,1725096196805,-500.0,0.00042739,120]
[336745090,1725096196856,-562.37,0.00042739,120]
[336745091,1725096196906,-1582.23,0.00042739,120]
[336745092,1725096196955,-867.17,0.00042739,120]
[336745093,1725096197008,-1256.91,0.00042739,120]
[336745094,1725096197060,-500.0,0.00042739,120]
[336745095,1725096197111,-500.0,0.00042739,120]
[336745096,1725096197162,-500.0,0.00042739,120]
[336745097,1725096197210,-735.6,0.00042739,120]
[336745098,1725096197262,-2186.79,0.00042739,120]
[336745099,1725096197310,-680.15,0.00042739,120]
[336745100,1725096197357,-4740.51,0.00042739,120]
[336745101,1725096197403,-500.0,0.00042739,120]
[336745102,1725096197449,-786.8,0.00042739,120]
[336745103,1725096197497,-601.44,0.00042739,120]
[336745104,1725096197544,-12860.68,0.00042739,120]
[336745105,1725096197593,-500.0,0.00042739,120]
[336745106,1725096197642,-834.67,0.00042739,120]
[336745107,1725096197694,-500.0,0.00042739,120]
[336745108,1725096197742,-408.04135717,0.00042739,120]
[336745109,1725096197791,-954.8,0.00042739,120]
[336745110,1725096197841,-961.43,0.00042739,120]
[336745111,1725096197890,-997.06,0.00042739,120]
[336745112,1725096197938,-326.24818547,0.00042739,120]
[336745113,1725096197987,-507.58,0.00042739,120]
[336745114,1725096198037,-500.0,0.00042739,120]
[336745115,1725096198086,-500.0,0.00042739,120]
[336745116,1725096198136,-996.39,0.00042739,120]
[336745117,1725096198184,-500.0,0.00042739,120]
[336745118,1725096198233,-615.17,0.00042739,120]
[336745119,1725096198281,-510.32,0.00042739,120]
[336745120,1725096198329,-4187.61,0.00042739,120]
[336745121,1725096198379,-941.17,0.00042739,120]
[336745122,1725096198428,-10782.5,0.00042739,120]
[336745123,1725096198478,-591.64,0.00042739,120]
[336745124,1725096198527,-500.0,0.00042739,120]
[336745125,1725096198577,-500.0,0.00042739,120]
[336745126,1725096198625,-500.0,0.00042739,120]
[336745127,1725096198673,-519.14,0.00042739,120]
[336745128,1725096198720,-675.23,0.00042739,120]
[336745129,1725096198770,-653.02,0.00042739,120]
[336745130,1725096198818,-500.0,0.00042739,120]
[336745131,1725096198867,-500.0,0.00042739,120]
[336745132,1725096198917,-1228.8,0.00042739,120]
[336745133,1725096198968,-557.32,0.00042739,120]
[336745134,1725096199017,-1015.85,0.00042739,120]
[336745135,1725096199066,-1823.12,0.00042739,120]
[336745136,1725096199272,-2186.95,0.00042739,120]
[336745137,1725096199321,-652.33,0.00042739,120]
[336745138,1725096199370,-500.0,0.00042739,120]
[336745139,1725096199420,-702.23,0.00042739,120]
[336745140,1725096199473,-2082.61,0.00042739,120]
[336745141,1725096199525,-500.0,0.00042739,120]
[336745142,1725096199579,-500.0,0.00042739,120]
[336745143,1725096199632,-694.0,0.00042739,120]
[336745144,1725096199687,-997.15,0.00042739,120]
[336745145,1725096199739,-604.52,0.00042739,120]
[336745146,1725096199792,-501.24,0.00042739,120]
[336745147,1725096199844,-390.44871313,0.00042739,120]
[336745148,1725096199898,-831.62,0.00042739,120]
[336745149,1725096199952,-835.51,0.00042739,120]
[336745150,1725096200003,-762.21,0.00042739,120]
[336745151,1725096200053,-6300.15,0.00042739,120]
[336745152,1725096200100,-887.91,0.00042739,120]
[336745153,1725096200148,-593.65,0.00042739,120]
[336745154,1725096200197,-500.0,0.00042739,120]
[336745155,1725096200244,-4114.25,0.00042739,120]
[336745156,1725096200295,-636.31,0.00042739,120]
[336745157,1725096200342,-11442.62,0.00042739,120]
[336745158,1725096200387,-564.38,0.00042739,120]
[336745159,1725096200437,-500.0,0.00042739,120]
[336745160,1725096200486,-500.0,0.00042739,120]
[336745161,1725096200533,-1161.84,0.00042739,120]
[336745162,1725096200580,-1654.38,0.00042739,120]
[336745163,1725096200627,-588.17,0.00042739,120]
[336745164,1725096200674,-1647.2,0.00042739,120]
[336745165,1725096200722,-500.0,0.00042739,120]
[336745166,1725096200772,-874.76,0.00042739,120]
[336745167,1725096200824,-1031.07,0.00042739,120]
[336745168,1725096200876,-1806.46,0.00042739,120]
[336745169,1725096200929,-1786.04,0.00042739,120]
[336745170,1725096200979,-500.0,0.00042739,120]
[336745171,1725096201028,-796.11,0.00042739,120]
[336745172,1725096201076,-4060.92,0.00042739,120]
[336745173,1725096201125,-1529.27,0.00042739,120]
[336745174,1725096201175,-764.48,0.00042739,120]
[336745175,1725096201221,-2246.61,0.00042739,120]
[336745176,1725096201269,-2118.38,0.00042739,120]
[336745177,1725096201315,-817.1,0.00042739,120]
[336745178,1725096201361,-500.0,0.00042739,120]
[336745179,1725096201408,-2580.32,0.00042739,120]
[336745180,1725096201454,-602.83,0.00042739,120]
[336745181,1725096201501,-2730.58,0.00042739,120]
[336745182,1725096201548,-567.84,0.00042739,120]
[336745183,1725096201595,-906.16,0.00042739,120]
[336745184,1725096201645,-881.66,0.00042739,120]
[336745185,1725096201694,-6580.53,0.00042739,120]
[336745186,1725096201744,-500.0,0.00042739,120]
[336745187,1725096201796,-776.12,0.00042739,120]
[336745188,1725096201845,-3133.75,0.00042739,120]
[336745189,1725096201895,-1318.72,0.00042739,120]
[336745190,1725096201942,-512.71,0.00042739,120]
[336745191,1725096201990,-500.0,0.00042739,120]
[336745192,1725096202042,-3220.73,0.00042739,120]
[336745193,1725096202093,-924.45,0.00042739,120]
[336745194,1725096202144,-1223.28,0.00042739,120]
[336745195,1725096202194,-1129.99,0.00042739,120]
[336745196,1725096202244,-500.0,0.00042739,120]
[336745197,1725096202293,-608.6,0.00042739,120]
[336745198,1725096202345,-1166.67,0.00042739,120]
[336745199,1725096202399,-500.0,0.00042739,120]
[336745200,1725096202454,-18433.68,0.00042739,120]
[336745201,1725096202510,-1392.73,0.00042739,120]
[336745202,1725096202565,-1402.0,0.00042739,120]
[336745203,1725096202619,-9146.0,0.00042739,120]
[336745204,1725096202670,-1370.15,0.00042739,120]
[336745205,1725096202726,-2524.5,0.00043159,95]
[336745206,1725096202779,-500.0,0.00043287,120]
[336745207,1725096202830,-761.33,0.00043287,120]
[336745208,1725096202882,-500.0,0.00043287,120]
[336745209,1725096202934,-500.0,0.00043287,120]
[336745210,1725096202985,-500.0,0.00043287,120]
[336745211,1725096203035,-728.45,0.00043287,120]
[336745212,1725096203085,-500.0,0.00043287,120]
[336745213,1725096203136,-602.57,0.00043287,120]
[336745214,1725096203186,-500.0,0.00043287,120]
[336745215,1725096203237,-1536.81,0.00043287,120]
[336745216,1725096203286,-500.0,0.00043287,120]
[336745217,1725096203335,-718.45,0.00043287,120]
[336745218,1725096203387,-613.86,0.00043287,120]
[336745219,1725096203438,-366.79479358,0.00043287,120]
[336745220,1725096203491,-737.5,0.00043287,120]
[336745221,1725096203544,-500.0,0.00043287,120]
[336745222,1725096203599,-500.0,0.00043287,120]
[336745223,1725096203652,-500.0,0.00043287,120]
[336745224,1725096203705,-500.0,0.00043287,120]
[336745225,1725096203758,-500.0,0.00043287,120]
[336745226,1725096203809,-854.52,0.00043287,120]
[336745227,1725096203863,-500.0,0.00043287,120]
[336745228,1725096203913,-500.0,0.00043287,120]
[336745229,1725096203962,-500.0,0.00043287,120]
[336745230,1725096204012,-500.0,0.00043287,120]
[336745231,1725096204062,-500.0,0.00043287,120]
[336745232,1725096204112,-500.0,0.00043287,120]
[336745233,1725096204162,-500.0,0.00043287,120]
[336745234,1725096204211,-504.81,0.00043287,120]
[336745235,1725096204262,-500.0,0.00043287,120]
[336745236,1725096204312,-500.0,0.00043287,120]
[336745237,1725096204362,-577.66,0.00043287,120]
[336745238,1725096204411,-500.0,0.00043287,120]
[336745239,1725096204617,-537.13,0.00043287,120]
[336745240,1725096204669,-500.0,0.00043287,120]
[336745241,1725096204725,-639.49,0.00043287,120]
[336745242,1725096204776,-500.0,0.00043287,120]
[336745243,1725096204827,-500.0,0.00043287,120]
[336745244,1725096204878,-558.16,0.00043287,120]
[336745245,1725096204928,-500.0,0.00043287,120]
[336745246,1725096204978,-500.0,0.00043287,120]
[336745247,1725096205030,-606.69,0.00043287,120]
[336745248,1725096205080,-500.0,0.00043287,120]
[336745249,1725096205129,-500.0,0.00043287,120]
[336745250,1725096205178,-500.0,0.00043287,120]
[336745251,1725096205226,-500.06,0.00043287,120]
[336745252,1725096205275,-533.19,0.00043287,120]
[336745253,1725096205323,-781.37,0.00043287,120]
[336745254,1725096205374,-457.44348004,0.00043287,120]
[336745255,1725096205426,-500.0,0.00043287,120]
[336745256,1725096205479,-541.93,0.00043287,120]
[336745257,1725096205532,-541.84,0.00043287,120]
[336745258,1725096205584,-500.0,0.00043287,120]
[336745259,1725096205636,-500.0,0.00043287,120]
[336745260,1725096205688,-500.0,0.00043287,120]
[336745261,1725096205745,-500.0,0.00043287,120]
[336745262,1725096205795,-500.0,0.00043287,120]
[336745263,1725096205845,-600.0,0.00043287,120]
[336745264,1725096205896,-500.0,0.00043287,120]
[336745265,1725096205948,-500.0,0.00043287,120]
[336745266,1725096205997,-838.09,0.00043287,120]
[336745267,1725096206047,-500.0,0.00043287,120]
[336745268,1725096206095,-509.55,0.00043287,120]
[336745269,1725096206144,-500.0,0.00043287,120]
[336745270,1725096206192,-500.0,0.00043287,120]
[336745271,1725096206240,-708.98,0.00043287,120]
[336745272,1725096206288,-500.0,0.00043287,120]
[336745273,1725096206335,-500.0,0.00043287,120]
[336745274,1725096206382,-500.0,0.00043287,120]
[336745275,1725096206431,-1509.98,0.00043287,120]
[336745276,1725096206480,-558.78,0.00043287,120]
[336745277,1725096206530,-500.0,0.00043287,120]
[336745278,1725096206580,-1624.06,0.00043287,120]
[336745279,1725096206635,-500.0,0.00043287,120]
[336745280,1725096206685,-640.25,0.00043287,120]
[336745281,1725096206738,-500.0,0.00043287,120]
[336745282,1725096206789,-934.21,0.00043287,120]
[336745283,1725096206841,-969.88,0.00043287,120]
[336745284,1725096206894,-791.62,0.00043287,120]
[336745285,1725096206948,-915.31,0.00043287,120]
[336745286,1725096207003,-1688.13,0.00043287,120]
[336745287,1725096207058,-616.66,0.00043287,120]
[336745288,1725096207114,-777.63,0.00043287,120]
[336745289,1725096207170,-1310.98,0.00043287,120]
[336745290,1725096207225,-875.1,0.00043287,120]
[336745291,1725096207278,-1032.09,0.00043287,120]
[336745292,1725096207333,-2876.73,0.00043287,120]
[336745293,1725096207387,-761.85,0.00043287,120]
[336745294,1725096207442,-1344.34,0.00043287,120]
[336745295,1725096207499,-4839.39,0.00043287,120]
[336745296,1725096207553,-500.0,0.00043287,120]
[336745297,1725096207610,-1399.41,0.00043287,120]
[336745298,1725096207663,-500.0,0.00043287,120]
[336745299,1725096207716,-588.48,0.00043287,120]
[336745300,1725096207771,-500.0,0.00043287,120]
[336745301,1725096207829,-606.12542437,0.00043287,120]
[336745302,1725096207883,-500.0,0.00043287,120]
[336745303,1725096207936,-559.89,0.00043287,120]
[336745304,1725096207986,-500.0,0.00043287,120]
[336745305,1725096208036,-500.0,0.00043287,120]
[336745306,1725096208086,-500.0,0.00043287,120]
[336745307,1725096208136,-511.74,0.00043287,120]
[336745308,1725096208185,-500.0,0.00043287,120]
[336745309,1725096208232,-500.0,0.00043287,120]
[336745310,1725096208280,-1112.54,0.00043287,120]
[336745311,1725096208329,-500.0,0.00043287,120]
[336745312,1725096208379,-500.0,0.00043287,120]
[336745313,1725096208429,-508.19,0.00043287,120]
[336745314,1725096208483,-2558.51,0.00043287,120]
[336745315,1725096208538,-694.5,0.00043287,120]
[336745316,1725096208590,-500.0,0.00043287,120]
[336745317,1725096208655,-923.73,0.00043287,120]
[336745318,1725096208712,-1446.32,0.00043287,120]
[336745319,1725096208765,-500.0,0.00043287,120]
[336745320,1725096208821,-1350.52,0.00043287,120]
[336745321,1725096208874,-500.0,0.00043287,120]
[336745322,1725096208928,-1170.8,0.00043287,120]
[336745323,1725096208980,-618.91,0.00043287,120]
[336745324,1725096209033,-500.0,0.00043287,120]
[336745325,1725096209086,-500.0,0.00043287,120]
[336745326,1725096209138,-3324.83,0.00043287,120]
[336745327,1725096209191,-1273.21,0.00043287,120]
[336745328,1725096209244,-500.0,0.00043287,120]
[336745329,1725096209299,-1114.0,0.00043287,120]
[336745330,1725096209355,-1256.51,0.00043287,120]
[336745331,1725096209409,-500.0,0.00043287,120]
[336745332,1725096209461,-1913.46,0.00043287,120]
[336745333,1725096209516,-1221.34,0.00043287,120]
[336745334,1725096209571,-500.0,0.00043287,120]
[336745335,1725096209625,-500.0,0.00043287,120]
[336745336,1725096209679,-1287.93,0.00043287,120]
[336745337,1725096209735,-500.0,0.00043287,120]
[336745338,1725096209790,-500.0,0.00043287,120]
[336745339,1725096209844,-925.06,0.00043287,120]
[336745340,1725096209897,-500.0,0.00043287,120]
[336745341,1725096209951,-438.72710202,0.00043287,120]
[336745342,1725096210003,-500.0,0.00043287,120]
[336745343,1725096210237,-548.88,0.00043287,120]
[336745344,1725096210286,-775.46,0.00043287,120]
[336745345,1725096210335,-1018.59,0.00043287,120]
[336745346,1725096210383,-540.19,0.00043287,120]
[336745347,1725096210432,-500.0,0.00043287,120]
[336745348,1725096210481,-1162.77,0.00043287,120]
[336745349,1725096210529,-500.0,0.00043287,120]
[336745350,1725096210577,-2066.04,0.00043287,120]
[336745351,1725096210626,-500.0,0.00043287,120]
[336745352,1725096210674,-500.0,0.00043287,120]
[336745353,1725096210723,-364.74109195,0.00043287,120]
[336745354,1725096210776,-500.0,0.00043287,120]
[336745355,1725096210825,-721.89,0.00043287,120]
[336745356,1725096210874,-666.61,0.00043287,120]
[336745357,1725096210923,-1547.45,0.00043287,120]
[336745358,1725096210971,-598.25,0.00043287,120]
[336745359,1725096211019,-558.12,0.00043287,120]
[336745360,1725096211067,-643.08,0.00043287,120]
[336745361,1725096211114,-585.19,0.00043287,120]
[336745362,1725096211161,-2179.7,0.00043287,120]
[336745363,1725096211209,-777.19,0.00043287,120]
[336745364,1725096211256,-2274.45,0.00043287,120]
[336745365,1725096211301,-500.0,0.00043287,120]
[336745366,1725096211348,-635.42,0.00043287,120]
[336745367,1725096211395,-500.0,0.00043287,120]
[336745368,1725096211443,-868.12,0.00043287,120]
[336745369,1725096211493,-500.0,0.00043287,120]
[336745370,1725096211543,-1151.6,0.00043287,120]
[336745371,1725096211594,-493.30124134,0.00043287,120]
[336745372,1725096211644,-562.37,0.00043287,120]
[336745373,1725096211698,-1582.23,0.00043287,120]
[336745374,1725096211753,-867.17,0.00043287,120]
[336745375,1725096211808,-1256.91,0.00043287,120]
[336745376,1725096211862,-500.0,0.00043287,120]
[336745377,1725096211916,-500.0,0.00043287,120]
[336745378,1725096211969,-500.0,0.00043287,120]
[336745379,1725096212022,-735.6,0.00043287,120]
[336745380,1725096212075,-2186.79,0.00043287,120]
[336745381,1725096212126,-680.15,0.00043287,120]
[336745382,1725096212176,-4740.51,0.00043287,120]
[336745383,1725096212226,-500.0,0.00043287,120]
[336745384,1725096212277,-786.8,0.00043287,120]
[336745385,1725096212328,-601.44,0.00043287,120]
[336745386,1725096212376,-12860.68,0.00043287,120]
[336745387,1725096212427,-500.0,0.00043287,120]
[336745388,1725096212477,-834.67,0.00043287,120]
[336745389,1725096212526,-500.0,0.00043287,120]
[336745390,1725096212575,-954.8,0.00043287,120]
[336745391,1725096212624,-961.43,0.00043287,120]
[336745392,1725096212668,-997.06,0.00043287,120]
[336745393,1725096212717,-507.58,0.00043287,120]
[336745394,1725096212763,-384.88610327,0.00043287,120]
[336745395,1725096212808,-500.0,0.00043287,120]
[336745396,1725096212854,-996.39,0.00043287,120]
[336745397,1725096212901,-615.17,0.00043287,120]
[336745398,1725096212946,-500.0,0.00043287,120]
[336745399,1725096212993,-510.32,0.00043287,120]
[336745400,1725096213042,-4187.61,0.00043287,120]
[336745401,1725096213090,-941.17,0.00043287,120]
[336745402,1725096213139,-10782.5,0.00043287,120]
[336745403,1725096213186,-591.64,0.00043287,120]
[336745404,1725096213234,-500.0,0.00043287,120]
[336745405,1725096213282,-500.0,0.00043287,120]
[336745406,1725096213329,-500.0,0.00043287,120]
[336745407,1725096213378,-519.14,0.00043287,120]
[336745408,1725096213426,-675.23,0.00043287,120]
[336745409,1725096213476,-653.02,0.00043287,120]
[336745410,1725096213525,-500.0,0.00043287,120]
[336745411,1725096213575,-500.0,0.00043287,120]
[336745412,1725096213626,-1228.8,0.00043287,120]
[336745413,1725096213676,-557.32,0.00043287,120]
[336745414,1725096213726,-1015.85,0.00043287,120]
[336745415,1725096213776,-1823.12,0.00043287,120]
[336745416,1725096213828,-2186.95,0.00043287,120]
[336745417,1725096213880,-500.0,0.00043287,120]
[336745418,1725096213933,-652.33,0.00043287,120]
[336745419,1725096213983,-702.23,0.00043287,120]
[336745420,1725096214051,-2082.61,0.00043287,120]
[336745421,1725096214109,-500.0,0.00043287,120]
[336745422,1725096214162,-500.0,0.00043287,120]
[336745423,1725096214214,-694.0,0.00043287,120]
[336745424,1725096214266,-997.15,0.00043287,120]
[336745425,1725096214316,-604.52,0.00043287,120]
[336745426,1725096214368,-501.24,0.00043287,120]
[336745427,1725096214419,-831.62,0.00043287,120]
[336745428,1725096214468,-835.51,0.00043287,120]
[336745429,1725096214518,-762.21,0.00043287,120]
[336745430,1725096214570,-6300.15,0.00043287,120]
[336745431,1725096214624,-887.91,0.00043287,120]
[336745432,1725096214675,-593.65,0.00043287,120]
[336745433,1725096214725,-500.0,0.00043287,120]
[336745434,1725096214776,-4114.25,0.00043287,120]
[336745435,1725096214830,-636.31,0.00043287,120]
[336745436,1725096214880,-11442.62,0.00043287,120]
[336745437,1725096214930,-564.38,0.00043287,120]
[336745438,1725096214980,-496.99955143,0.00043287,120]
[336745439,1725096215028,-500.0,0.00043287,120]
[336745440,1725096215077,-1161.84,0.00043287,120]
[336745441,1725096215127,-1654.38,0.00043287,120]
[336745442,1725096215176,-588.17,0.00043287,120]
[336745443,1725096215227,-1647.2,0.00043287,120]
[336745444,1725096215276,-500.0,0.00043287,120]
[336745445,1725096215324,-1031.07,0.00043287,120]
[336745446,1725096215370,-874.76,0.00043287,120]
[336745447,1725096215573,-1806.46,0.00043287,120]
[336745448,1725096215627,-1786.04,0.00043287,120]
[336745449,1725096215678,-500.0,0.00043287,120]
[336745450,1725096215727,-796.11,0.00043287,120]
[336745451,1725096215778,-4060.92,0.00043287,120]
[336745452,1725096215831,-1529.27,0.00043287,120]
[336745453,1725096215886,-764.48,0.00043287,120]
[336745454,1725096215939,-2246.61,0.00043287,120]
[336745455,1725096215990,-2118.38,0.00043287,120]
[336745456,1725096216040,-817.1,0.00043287,120]
[336745457,1725096216092,-547.19484181,0.00043287,120]
[336745458,1725096216142,-2580.32,0.00043287,120]
[336745459,1725096216192,-602.83,0.00043287,120]
[336745460,1725096216243,-2730.58,0.00043287,120]
[336745461,1725096216290,-567.84,0.00043287,120]
[336745462,1725096216337,-906.16,0.00043287,120]
[336745463,1725096216386,-881.66,0.00043287,120]
[336745464,1725096216435,-6580.53,0.00043287,120]
[336745465,1725096216485,-500.0,0.00043287,120]
[336745466,1725096216535,-776.12,0.00043287,120]
[336745467,1725096216586,-3133.75,0.00043287,120]
[336745468,1725096216637,-1318.72,0.00043287,120]
[336745469,1725096216688,-512.71,0.00043287,120]
[336745470,1725096216738,-500.0,0.00043287,120]
[336745471,1725096216789,-3220.73,0.00043287,120]
[336745472,1725096216840,-924.45,0.00043287,120]
[336745473,1725096216892,-1223.28,0.00043287,120]
[336745474,1725096216942,-1129.99,0.00043287,120]
[336745475,1725096216993,-500.0,0.00043287,120]
[336745476,1725096217046,-608.6,0.00043287,120]
[336745477,1725096217097,-1166.67,0.00043287,120]
[336745478,1725096217147,-500.0,0.00043287,120]
[336745479,1725096217199,-18433.68,0.00043287,120]
[336745480,1725096217251,-1392.73,0.00043287,120]
[336745481,1725096217302,-1402.0,0.00043287,120]
[336745482,1725096217355,-9146.0,0.00043287,120]
[336745483,1725096217405,-1370.15,0.00043287,120]
[336745484,1725096217457,-461.33968166,0.00043835,120]
[336745485,1725096217509,-761.33,0.00043835,120]
[336745486,1725096217562,-500.0,0.00043835,120]